fUSD/lending_fUSD_20250125
["ID","MTS","AMOUNT","RATE_DAILY","PERIOD"]
[350389955,1737823853063,-637.27419595,0.00020693,2]
[350389956,1737823853073,-1400.0,0.000207,7]
[350389957,1737823853083,-1100.10401193,0.000207,2]
[350389958,1737823853092,-553.68433305,0.000207,2]
[350389959,1737823853103,-193.11044004,0.000207,3]
[350389960,1737823853113,-12591.31803735,0.000207,2]
[350389961,1737823853124,-3089.10627672,0.000207,2]
[350389962,1737823853134,-537.96,0.00020712,2]
[350389963,1737823853143,-1000.0,0.00020726,2]
[350389964,1737823853153,-5541.96308846,0.0002075,2]
[350389965,1737823853163,-916.95177182,0.0002076,2]
[350389966,1737823853172,-735873.15520644,0.0002076,2]
[350389967,1737823853184,-1174.87864487,0.0002076,2]
[350389968,1737823853195,-6551.41583285,0.0002076,2]
[350389969,1737823853206,-1426.88643987,0.0002076,2]
[350389970,1737823853218,-5581.41479164,0.0002076,2]
[350389971,1737823853229,-5764.83045,0.0002076,2]
[350389972,1737823853241,-3332.6871248,0.0002076,2]
[350389973,1737823853252,-6897.6099792,0.0002076,2]
[350389974,1737823853264,-1244.15535,0.0002076,2]
[350389975,1737823853275,-1568.49349,0.0002076,2]
[350389976,1737823853286,-7188.2364259,0.0002076,2]
[350389977,1737823853297,-316.24050791,0.0002076,2]
[350389978,1737823853309,-393.04398086,0.0002076,2]
[350389979,1737823853651,-500.0,0.00016574,2]
[350389980,1737823853660,-322.30654379,0.00016574,2]
[350389981,1737823853670,-500.0,0.00016574,2]
[350389982,1737823853680,-500.0,0.00016574,2]
[350389983,1737823853690,-500.0,0.00018657,2]
[350389984,1737823853700,-500.0,0.00018794,2]
[350389985,1737823853710,-500.0,0.00018931,2]
[350389986,1737823853719,-500.0,0.00019068,2]
[350389987,1737823853730,-500.0,0.00019205,2]
[350389988,1737823853739,-19718.33759792,0.0002076,2]
[350389989,1737823853751,-10544.49279954,0.0002076,2]
[350389990,1737823853762,-6108.38675946,0.0002076,2]
[350389991,1737823853774,-2144.98007434,0.0002076,2]
[350389992,1737823853785,-3172.61671403,0.0002076,2]
[350389993,1737823853798,-942.94,0.0002076,2]
[350389994,1737823853810,-328.99232165,0.0002076,2]
[350389995,1737823853821,-997.37910358,0.0002076,2]
[350389996,1737823853832,-4960.58407607,0.0002076,2]
[350389997,1737823853844,-923.03617976,0.0002076,2]
[350389998,1737823853860,-358.33485164,0.0002076,2]
[350389999,1737823853872,-1021.35390046,0.0002076,2]
[350390000,1737823853883,-286.88553038,0.0002076,2]
[350390001,1737823853895,-33804.87765479,0.0002076,2]
[350390002,1737823853906,-131690.11121791,0.0002076,2]
[350390003,1737823853920,-45885.01234604,0.0002076,2]
[350390004,1737823853932,-1795.73637612,0.0002076,2]
[350390005,1737823853944,-33295.632378,0.0002076,2]
[350390006,1737823854005,-500.0,0.00016574,2]
[350390007,1737823854015,-500.0,0.00016574,2]
[350390008,1737823854024,-1831.22204049,0.0002076,2]
[350390009,1737823854035,-648.75499999,0.0002076,2]
[350390010,1737823854046,-22860.82785474,0.0002076,2]
[350390011,1737823854058,-527.50946037,0.0002076,2]
[350390012,1737823855056,-23900.0,0.00016268,2]
[350390013,1737823855066,-500.0,0.00016574,2]
[350390014,1737823855075,-500.0,0.00016574,2]
[350390015,1737823855084,-121722.14862929,0.0002076,2]
[350390016,1737823855096,-1500.0,0.0002076,2]
[350390017,1737823855233,-6414.789155,0.0002076,2]
[350390018,1737823855245,-3512.57464604,0.0002076,2]
[350390019,1737823855259,-15458.80508749,0.0002076,2]
[350390020,1737823855270,-2094.05980958,0.0002076,2]
[350390021,1737823855281,-1836.4,0.0002076,2]
[350390022,1737823855291,-1069206.3704449,0.0002076,2]
[350390023,1737823855358,-519.37503563,0.00016574,2]
[350390024,1737823855367,-500.0,0.00017259,2]
[350390025,1737823855376,-1933.95895608,0.0002076,2]
[350390026,1737823855387,-1186.88147612,0.0002076,2]
[350390027,1737823855398,-501.2,0.0002076,2]
[350390028,1737823855411,-542.49,0.0002076,2]
[350390029,1737823855422,-3348.64372251,0.0002076,2]
[350390030,1737823855433,-5565.89143876,0.0002076,2]
[350390033,1737824581691,-152.39,0.00010137,2]
[350390047,1737825032193,-550.0,0.00015,2]
[350390048,1737825032203,-1205.4339372,0.00015525,2]
[350390049,1737825032214,-222.63429774,0.00015625,2]
[350390050,1737825032223,-590.21568526,0.00015725,2]
[350390051,1737825032245,-2210.24704574,0.00015725,2]
[350390052,1737825032255,-31788.41074842,0.00015984,2]
[350390053,1737825032265,-936.68,0.00015986,2]
[350390054,1737825032274,-616.041906,0.00016374,2]
[350390055,1737825032284,-222.63429773,0.00016473,2]
[350390056,1737825032293,-300.0,0.00016473,2]
[350390057,1737825032303,-1562.3109,0.00016474,2]
[350390058,1737825032313,-9637.2779,0.00016474,2]
[350390059,1737825032322,-1377.0926,0.00016474,2]
[350390060,1737825032332,-500.0,0.00016573,2]
[350390061,1737825032342,-500.0,0.00016573,2]
[350390062,1737825032352,-500.0,0.00016573,2]
[350390063,1737825032361,-500.0,0.00016573,2]
[350390064,1737825032371,-500.0,0.00016573,2]
[350390065,1737825032381,-500.0,0.00016573,2]
[350390066,1737825032390,-500.0,0.00016573,2]
[350390067,1737825032400,-500.0,0.00016573,2]
[350390068,1737825032409,-500.0,0.00016573,2]
[350390069,1737825032418,-500.0,0.00016573,2]
[350390070,1737825032428,-500.0,0.00016573,2]
[350390071,1737825032439,-500.0,0.00016573,2]
[350390072,1737825032448,-500.0,0.00016573,2]
[350390073,1737825032458,-500.0,0.00016573,2]
[350390074,1737825032467,-500.0,0.00016573,2]
[350390075,1737825032477,-500.0,0.00016573,2]
[350390076,1737825032487,-500.0,0.00016573,2]
[350390077,1737825032496,-500.0,0.00016573,2]
[350390078,1737825032506,-500.0,0.00016573,2]
[350390079,1737825032516,-500.0,0.00016573,2]
[350390080,1737825032526,-500.0,0.00016573,2]
[350390081,1737825032536,-500.0,0.00016573,2]
[350390082,1737825032546,-500.0,0.00016573,2]
[350390083,1737825032555,-500.0,0.00016573,2]
[350390084,1737825032566,-500.0,0.00016573,2]
[350390085,1737825032575,-500.0,0.00016573,2]
[350390086,1737825032584,-500.0,0.00016573,2]
[350390087,1737825032593,-500.0,0.00016573,2]
[350390088,1737825032603,-500.0,0.00016573,2]
[350390089,1737825032612,-500.0,0.00016573,2]
[350390090,1737825032621,-500.0,0.00016573,2]
[350390091,1737825032631,-500.0,0.00016573,2]
[350390092,1737825032639,-500.0,0.00016573,2]
[350390093,1737825032649,-500.0,0.00016573,2]
[350390094,1737825032658,-500.0,0.00016573,2]
[350390095,1737825032668,-500.0,0.00016573,2]
[350390096,1737825032677,-500.0,0.00016573,2]
[350390098,1737825032686,-500.0,0.00016573,2]
[350390100,1737825032695,-500.0,0.00016573,2]
[350390102,1737825032705,-500.0,0.00016573,2]
[350390104,1737825032714,-500.0,0.00016573,2]
[350390106,1737825032724,-500.0,0.00016573,2]
[350390108,1737825032733,-454.65415015,0.00016574,2]
[350390110,1737825032742,-223.6321187,0.00016574,2]
[350390112,1737825032751,-418.9195637,0.00016574,2]
[350390114,1737825032761,-500.0,0.00016574,2]
[350390116,1737825032769,-500.0,0.00016574,2]
[350390118,1737825032779,-500.0,0.00016574,2]
[350390121,1737825032789,-186.76292219,0.00016574,2]
[350390124,1737825032801,-500.0,0.00016574,2]
[350390126,1737825032811,-500.98860579,0.00016574,2]
[350390129,1737825032821,-500.0,0.00016574,2]
[350390132,1737825032830,-500.0,0.00016574,2]
[350390135,1737825032842,-500.0,0.00016574,2]
[350390137,1737825032851,-500.0,0.00016574,2]
[350390139,1737825032860,-500.0,0.00016574,2]
[350390141,1737825032870,-500.0,0.00016574,2]
[350390143,1737825032879,-500.0,0.00016574,2]
[350390145,1737825032890,-500.0,0.00016574,2]
[350390148,1737825032901,-500.0,0.00016574,2]
[350390150,1737825032911,-500.0,0.00016574,2]
[350390152,1737825032921,-500.0,0.00016574,2]
[350390154,1737825032930,-648.49887919,0.00016574,2]
[350390156,1737825032942,-320.33809026,0.00016574,2]
[350390158,1737825032951,-500.0,0.00016574,2]
[350390160,1737825032961,-500.0,0.00016574,2]
[350390162,1737825032971,-500.0,0.00016574,2]
[350390164,1737825032981,-500.0,0.00016574,2]
[350390166,1737825032991,-500.0,0.00016574,2]
[350390168,1737825033000,-500.0,0.00016574,2]
[350390170,1737825033009,-500.0,0.00016574,2]
[350390172,1737825033019,-500.0,0.00016574,2]
[350390174,1737825033030,-500.0,0.00016574,2]
[350390176,1737825033040,-500.0,0.00016574,2]
[350390178,1737825033050,-500.0,0.00016574,2]
[350390180,1737825033061,-500.0,0.00016574,2]
[350390182,1737825033071,-512.16609714,0.00016574,2]
[350390184,1737825033081,-500.0,0.00016574,2]
[350390186,1737825033090,-500.0,0.00016574,2]
[350390189,1737825033111,-500.0,0.00016574,2]
[350390191,1737825033124,-500.0,0.00016574,2]
[350390193,1737825033134,-500.0,0.00016574,2]
[350390195,1737825033144,-500.0,0.00016574,2]
[350390197,1737825033155,-500.0,0.00016574,2]
[350390199,1737825033165,-500.0,0.00016574,2]
[350390201,1737825033175,-500.0,0.00016574,2]
[350390203,1737825033185,-331.16738138,0.00016574,2]
[350390205,1737825033197,-500.0,0.00016574,2]
[350390207,1737825033207,-500.0,0.00016574,2]
[350390209,1737825033218,-500.0,0.00016574,2]
[350390211,1737825033228,-500.0,0.00016574,2]
[350390213,1737825033239,-500.0,0.00016574,2]
[350390215,1737825033250,-500.0,0.00016574,2]
[350390216,1737825033260,-500.0,0.00016574,2]
[350390217,1737825033271,-500.0,0.00016574,2]
[350390218,1737825033281,-519.48538641,0.00016574,2]
[350390219,1737825033291,-500.0,0.00016574,2]
[350390220,1737825033300,-500.0,0.00016574,2]
[350390221,1737825033310,-500.0,0.00016574,2]
[350390222,1737825033320,-500.0,0.00016574,2]
[350390223,1737825033330,-500.0,0.00016574,2]
[350390224,1737825033341,-500.0,0.00016574,2]
[350390225,1737825033352,-500.0,0.00016574,2]
[350390226,1737825033362,-500.0,0.00016574,2]
[350390227,1737825033372,-500.0,0.00016574,2]
[350390228,1737825033382,-500.0,0.00016574,2]
[350390229,1737825033392,-500.0,0.00016574,2]
[350390230,1737825033403,-500.0,0.00016574,2]
[350390232,1737825033412,-248.29368683,0.00016574,2]
[350390234,1737825033422,-500.71739798,0.00016574,2]
[350390236,1737825033432,-204.29672561,0.00016574,2]
[350390238,1737825033443,-500.0,0.00016574,2]
[350390240,1737825033452,-500.0,0.00016574,2]
[350390242,1737825033462,-500.0,0.00016574,2]
[350390244,1737825033472,-370.87057537,0.00016574,2]
[350390246,1737825033482,-500.0,0.00016574,2]
[350390248,1737825033492,-500.0,0.00016574,2]
[350390250,1737825033502,-500.0,0.00016574,2]
[350390252,1737825033512,-500.0,0.00016574,2]
[350390254,1737825033522,-500.0,0.00016574,2]
[350390256,1737825033533,-500.0,0.00016574,2]
[350390258,1737825033543,-645.34629109,0.00016574,2]
[350390260,1737825033553,-500.0,0.00016574,2]
[350390262,1737825033563,-500.0,0.00016574,2]
[350390264,1737825033572,-500.0,0.00016574,2]
[350390266,1737825033582,-500.0,0.00016574,2]
[350390268,1737825033591,-500.0,0.00016574,2]
[350390270,1737825033602,-500.0,0.00016574,2]
[350390272,1737825033612,-500.0,0.00016574,2]
[350390274,1737825033622,-500.0,0.00016574,2]
[350390276,1737825033633,-500.0,0.00016574,2]
[350390278,1737825033643,-500.0,0.00016574,2]
[350390280,1737825033652,-500.0,0.00016574,2]
[350390282,1737825033662,-500.0,0.00016574,2]
[350390284,1737825033672,-500.0,0.00016574,2]
[350390286,1737825033681,-500.0,0.00016574,2]
[350390288,1737825033691,-250.0,0.00016636,2]
[350390290,1737825033702,-500.0,0.0001671,2]
[350390292,1737825033712,-500.0,0.0001671,2]
[350390294,1737825033721,-500.0,0.0001671,2]
[350390296,1737825033730,-500.0,0.0001671,2]
[350390298,1737825033740,-500.0,0.0001671,2]
[350390300,1737825033749,-500.0,0.0001671,2]
[350390302,1737825033759,-500.0,0.0001671,2]
[350390304,1737825033769,-500.0,0.0001671,2]
[350390306,1737825033779,-500.0,0.0001671,2]
[350390308,1737825033789,-500.0,0.0001671,2]
[350390310,1737825033803,-500.0,0.0001671,2]
[350390312,1737825033813,-500.0,0.0001671,2]
[350390314,1737825033823,-500.0,0.0001671,2]
[350390316,1737825033833,-500.0,0.0001671,2]
[350390318,1737825033842,-500.0,0.0001671,2]
[350390320,1737825033853,-500.0,0.0001671,2]
[350390322,1737825033862,-500.0,0.0001671,2]
[350390324,1737825033872,-500.0,0.0001671,2]
[350390326,1737825033882,-500.0,0.0001671,2]
[350390328,1737825033892,-500.0,0.0001671,2]
[350390330,1737825033901,-500.0,0.0001671,2]
[350390332,1737825033911,-500.0,0.0001671,2]
[350390334,1737825033922,-94.88632746,0.0001671,2]
[350390337,1737825033938,-405.11367254,0.0001671,2]
[350390338,1737825033948,-500.0,0.0001671,2]
[350390340,1737825033959,-500.0,0.0001671,2]
[350390342,1737825033969,-517.5939595,0.0001671,2]
[350390344,1737825033979,-500.0,0.0001671,2]
[350390346,1737825033989,-500.0,0.0001671,2]
[350390348,1737825034001,-500.0,0.0001671,2]
[350390350,1737825034011,-500.0,0.0001671,2]
[350390352,1737825034021,-500.0,0.00016711,2]
[350390354,1737825034031,-500.0,0.00016711,2]
[350390356,1737825034041,-159.40303725,0.00016711,2]
[350390358,1737825034052,-500.0,0.00016711,2]
[350390360,1737825034062,-241.56080543,0.00016711,2]
[350390362,1737825034073,-500.0,0.00016711,2]
[350390364,1737825034083,-500.0,0.00016711,2]
[350390366,1737825034092,-500.0,0.00016711,2]
[350390368,1737825034103,-500.0,0.00016711,2]
[350390371,1737825034113,-500.0,0.00016711,2]
[350390373,1737825034124,-500.0,0.00016711,2]
[350390374,1737825034134,-309.55830001,0.00016711,2]
[350390377,1737825034144,-500.0,0.00016711,2]
[350390379,1737825034155,-162.57718629,0.000168,2]
[350390381,1737825034165,-500.0,0.00016847,2]
[350390382,1737825034175,-500.0,0.00016847,2]
[350390384,1737825034185,-500.0,0.00016847,2]
[350390387,1737825034196,-500.0,0.00016847,2]
[350390389,1737825034206,-500.0,0.00016847,2]
[350390391,1737825034218,-500.0,0.00016847,2]
[350390393,1737825034229,-500.0,0.00016847,2]
[350390394,1737825034238,-500.0,0.00016847,2]
[350390396,1737825034248,-500.0,0.00016847,2]
[350390398,1737825034258,-500.0,0.00016847,2]
[350390400,1737825034268,-500.0,0.00016847,2]
[350390402,1737825034278,-1564.32690538,0.000169,2]
[350390404,1737825034288,-564.18460525,0.00016984,2]
[350390406,1737825034298,-500.0,0.00016984,2]
[350390408,1737825034308,-500.0,0.00016984,2]
[350390410,1737825034318,-500.81802442,0.00016986,2]
[350390412,1737825034329,-600.0,0.00017,2]
[350390414,1737825034339,-1099.84046,0.00017088,7]
[350390416,1737825034349,-10387.5,0.0001711,2]
[350390418,1737825034358,-731.61,0.00017113,2]
[350390421,1737825034370,-250.0,0.00017118,2]
[350390422,1737825034379,-2861.87,0.00017226,2]
[350390425,1737825034390,-1099.84046,0.00017288,7]
[350390427,1737825034400,-1564.32690529,0.00017433,2]
[350390429,1737825034410,-1099.84046,0.00017488,7]
[350390431,1737825034420,-1000.0,0.000175,2]
[350390433,1737825034429,-2000.0,0.00017513,2]
[350390435,1737825034439,-1310.8171,0.00017555,2]
[350390437,1737825034449,-1099.84046,0.00017688,7]
[350390439,1737825034458,-154.13,0.00017777,2]
[350390441,1737825034467,-250.0,0.00017824,2]
[350390443,1737825034477,-2096.89,0.00017844,2]
[350390445,1737825034486,-201.75176192,0.000179,2]
[350390447,1737825034496,-1564.32690529,0.00017967,2]
[350390449,1737825034505,-849.514,0.00018017,2]
[350390451,1737825034515,-166.66,0.00018051,2]
[350390453,1737825034524,-201.75176169,0.00018067,2]
[350390454,1737825034534,-154.27,0.00018079,2]
[350390455,1737825034544,-1099.84046,0.00018088,7]
[350390456,1737825034554,-281.36,0.00018149,2]
[350390457,1737825034563,-273.01683339,0.00018164,2]
[350390458,1737825034573,-201.75176169,0.00018233,2]
[350390459,1737825034582,-936.68,0.00018249,2]
[350390460,1737825034591,-1099.84046,0.00018288,7]
[350390461,1737825034600,-150.85,0.00018295,30]
[350390462,1737825034610,-201.75176169,0.000184,2]
[350390463,1737825034799,-1099.84046,0.00018488,7]
[350390464,1737825034809,-550.85484683,0.0001852,2]
[350390465,1737825034818,-506.13620497,0.0001852,2]
[350390466,1737825034828,-504.30167973,0.0001852,2]
[350390467,1737825034838,-503.94541376,0.0001852,2]
[350390468,1737825034847,-389.17654142,0.0001852,2]
[350390469,1737825034858,-509.54999404,0.0001852,2]
[350390470,1737825034871,-500.0,0.0001852,2]
[350390471,1737825034881,-502.40432962,0.0001852,2]
[350390472,1737825034891,-506.28113641,0.0001852,2]
[350390473,1737825034901,-633.78268569,0.0001852,2]
[350390474,1737825034910,-505.30666949,0.0001852,2]
[350390475,1737825034919,-500.0,0.0001852,2]
[350390476,1737825034929,-500.0,0.0001852,2]
[350390477,1737825034940,-500.0,0.0001852,2]
[350390478,1737825034957,-201.75176169,0.00018567,2]
[350390479,1737825034968,-176.63,0.00018583,2]
[350390480,1737825034978,-500.0,0.00018657,2]
[350390481,1737825034989,-1099.84046,0.00018688,7]
[350390482,1737825034998,-201.75176169,0.00018733,2]
[350390483,1737825035009,-151.1584299,0.00018877,2]
[350390484,1737825035019,-201.75176169,0.000189,2]
[350390485,1737825035028,-252.71,0.00018903,2]
[350390486,1737825035038,-201.75176169,0.00019067,2]
[350390487,1737825035048,-201.75176169,0.00019233,2]
[350390488,1737825035057,-200.0,0.00019272,2]
[350390489,1737825035066,-201.75176169,0.000194,2]
[350390490,1737825035076,-150.0,0.0001949,2]
[350390491,1737825035086,-2454.107,0.0001949,2]
[350390492,1737825035096,-1106.0,0.0001949,2]
[350390493,1737825035106,-209.69,0.00019503,2]
[350390494,1737825035116,-201.75176169,0.00019567,2]
[350390495,1737825035126,-1000.0,0.00019688,2]
[350390496,1737825035135,-201.75176169,0.00019733,2]
[350390497,1737825035145,-384.67,0.00019758,2]
[350390498,1737825035154,-402.21688497,0.00019767,2]
[350390499,1737825035164,-378.99035774,0.00019767,2]
[350390500,1737825035174,-423.71268912,0.00019767,2]
[350390501,1737825035184,-500.0,0.00019767,2]
[350390502,1737825035195,-392.74,0.00019767,2]
[350390503,1737825035205,-500.0,0.00019767,2]
[350390504,1737825035215,-501.55883974,0.00019767,2]
[350390505,1737825035225,-500.0,0.00019767,2]
[350390506,1737825035234,-63088.0,0.00019768,2]
[350390507,1737825035244,-154.27,0.00019887,2]
[350390508,1737825035254,-201.75176169,0.000199,2]
[350390509,1737825035263,-500.0,0.00019904,2]
[350390510,1737825035273,-500.0,0.00019904,2]
[350390511,1737825035282,-152.0,0.00019964,3]
[350390512,1737825035291,-154.13,0.00019999,2]
[350390513,1737825035301,-500.0,0.00020041,2]
[350390514,1737825035310,-201.75176169,0.00020067,2]
[350390515,1737825035319,-500.0,0.00020071,2]
[350390516,1737825035329,-500.0,0.00020071,2]
[350390517,1737825035338,-500.0,0.00020071,2]
[350390518,1737825035347,-500.0,0.00020071,2]
[350390519,1737825035356,-364.23363605,0.00020071,2]
[350390520,1737825035366,-500.0,0.00020071,2]
[350390521,1737825035375,-500.0,0.00020071,2]
[350390522,1737825035385,-500.0,0.00020071,2]
[350390523,1737825035396,-500.0,0.00020071,2]
[350390524,1737825035408,-500.0,0.00020071,2]
[350390525,1737825035420,-500.0,0.00020071,2]
[350390526,1737825035429,-500.0,0.00020071,2]
[350390527,1737825035438,-500.0,0.00020071,2]
[350390528,1737825035448,-500.0,0.00020071,2]
[350390529,1737825035457,-500.0,0.00020071,2]
[350390530,1737825035466,-189.24,0.00020071,2]
[350390531,1737825035475,-500.0,0.00020071,2]
[350390532,1737825035485,-500.0,0.00020071,2]
[350390533,1737825035494,-500.0,0.00020071,2]
[350390534,1737825035503,-500.0,0.00020071,2]
[350390535,1737825035512,-500.0,0.00020071,2]
[350390536,1737825035521,-500.0,0.00020071,2]
[350390537,1737825035530,-500.0,0.00020071,2]
[350390538,1737825035541,-500.0,0.00020071,2]
[350390539,1737825035550,-500.0,0.00020071,2]
[350390540,1737825035559,-500.0,0.00020071,2]
[350390541,1737825035568,-500.0,0.00020071,2]
[350390542,1737825035577,-500.0,0.00020071,2]
[350390543,1737825035587,-500.0,0.00020071,2]
[350390544,1737825035596,-500.0,0.00020071,2]
[350390545,1737825035605,-538.5,0.00020071,2]
[350390546,1737825035614,-500.0,0.00020071,2]
[350390547,1737825035623,-500.0,0.00020071,2]
[350390548,1737825035632,-500.0,0.00020071,2]
[350390549,1737825035641,-500.0,0.00020071,2]
[350390550,1737825035650,-500.0,0.00020071,2]
[350390551,1737825035659,-500.0,0.00020071,2]
[350390552,1737825035668,-500.0,0.00020071,2]
[350390553,1737825035677,-500.0,0.00020071,2]
[350390554,1737825035686,-500.0,0.00020071,2]
[350390555,1737825035696,-500.0,0.00020071,2]
[350390556,1737825035705,-500.0,0.00020071,2]
[350390557,1737825035714,-524.132914,0.00020071,2]
[350390558,1737825035723,-500.0,0.00020071,2]
[350390559,1737825035732,-161.357966,0.00020071,2]
[350390560,1737825035741,-500.0,0.00020071,2]
[350390561,1737825035752,-500.0,0.00020071,2]
[350390562,1737825035761,-500.0,0.00020071,2]
[350390563,1737825035771,-500.0,0.00020208,2]
[350390564,1737825035780,-500.0,0.00020208,2]
[350390565,1737825035793,-319.96,0.00020208,2]
[350390566,1737825035803,-500.0,0.00020208,2]
[350390567,1737825035811,-500.0,0.00020208,2]
[350390568,1737825035821,-500.0,0.00020208,2]
[350390569,1737825035830,-450.9,0.00020208,2]
[350390570,1737825035839,-381.65114402,0.00020208,2]
[350390571,1737825035849,-500.0,0.00020208,2]
[350390572,1737825035857,-506.52,0.00020208,2]
[350390573,1737825035867,-500.0,0.00020208,2]
[350390574,1737825035877,-311.9,0.00020208,2]
[350390575,1737825035887,-500.0,0.00020208,2]
[350390576,1737825035896,-500.0,0.00020208,2]
[350390577,1737825035905,-500.0,0.00020208,2]
[350390578,1737825035914,-500.0,0.00020208,2]
[350390579,1737825035923,-500.0,0.00020208,2]
[350390580,1737825035933,-500.0,0.00020208,2]
[350390581,1737825035942,-500.0,0.00020208,2]
[350390582,1737825035951,-500.0,0.00020208,2]
[350390583,1737825035961,-500.0,0.00020208,2]
[350390584,1737825035970,-500.0,0.00020208,2]
[350390585,1737825035980,-500.0,0.00020208,2]
[350390586,1737825035989,-500.0,0.00020208,2]
[350390587,1737825035998,-608.19,0.00020208,2]
[350390588,1737825036007,-599.44,0.00020208,2]
[350390589,1737825036016,-500.0,0.00020208,2]
[350390590,1737825036026,-500.0,0.00020208,2]
[350390591,1737825036035,-500.0,0.00020208,2]
[350390592,1737825036045,-500.0,0.00020208,2]
[350390593,1737825036055,-500.0,0.00020208,2]
[350390594,1737825036064,-524.132914,0.00020208,2]
[350390595,1737825036074,-500.0,0.00020208,2]
[350390596,1737825036084,-500.0,0.00020208,2]
[350390597,1737825036092,-201.75176169,0.00020233,2]
[350390598,1737825036102,-5000.0,0.00020273,2]
[350390599,1737825036112,-170.78346536,0.00020273,2]
[350390600,1737825036122,-571.82,0.00020345,2]
[350390601,1737825036133,-500.0,0.00020345,2]
[350390602,1737825036143,-239.2,0.00020345,2]
[350390603,1737825036153,-500.0,0.00020345,2]
[350390604,1737825036163,-539.9,0.00020345,2]
[350390605,1737825036173,-500.0,0.00020345,2]
[350390606,1737825036183,-500.0,0.00020345,2]
[350390607,1737825036192,-500.0,0.00020345,2]
[350390608,1737825036202,-500.0,0.00020345,2]
[350390609,1737825036211,-500.0,0.00020345,2]
[350390610,1737825036219,-237.5,0.00020345,2]
[350390611,1737825036229,-500.0,0.00020345,2]
[350390612,1737825036238,-278.06,0.00020345,2]
[350390613,1737825036247,-500.0,0.00020345,2]
[350390614,1737825036256,-626.06,0.00020345,2]
[350390615,1737825036265,-500.0,0.00020345,2]
[350390616,1737825036274,-627.94,0.00020345,2]
[350390617,1737825036284,-500.0,0.00020345,2]
[350390618,1737825036293,-500.0,0.00020345,2]
[350390619,1737825036302,-500.0,0.00020345,2]
[350390620,1737825036311,-500.0,0.00020345,2]
[350390621,1737825036321,-500.0,0.00020345,2]
[350390622,1737825036330,-763.795025,0.00020372,2]
[350390623,1737825036339,-500.0,0.00020372,2]
[350390624,1737825036350,-528.22,0.00020372,2]
[350390625,1737825036360,-500.0,0.00020372,2]
[350390626,1737825036369,-628.04,0.00020372,2]
[350390627,1737825036378,-407.31349117,0.00020372,2]
[350390628,1737825036387,-500.0,0.00020372,2]
[350390629,1737825036397,-500.0,0.00020372,2]
[350390630,1737825036407,-500.0,0.00020372,2]
[350390631,1737825036416,-500.0,0.00020372,2]
[350390632,1737825036426,-500.0,0.00020372,2]
[350390633,1737825036435,-566.54045118,0.00020372,2]
[350390634,1737825036446,-500.0,0.00020372,2]
[350390635,1737825036455,-514.45954882,0.00020372,2]
[350390636,1737825036465,-500.0,0.00020372,2]
[350390637,1737825036475,-500.0,0.00020372,2]
[350390638,1737825036484,-500.0,0.00020372,2]
[350390639,1737825036493,-500.0,0.00020372,2]
[350390640,1737825036502,-500.0,0.00020372,2]
[350390641,1737825036511,-500.0,0.00020372,2]
[350390642,1737825036521,-500.0,0.00020372,2]
[350390643,1737825036530,-500.0,0.00020372,2]
[350390644,1737825036539,-500.0,0.00020372,2]